bitfinex-derivatives/quotes_ETHF0:USTF0_20250502
["timestamp","ask_amount","ask_price","bid_price","bid_amount"]
[1746158511492,12.88356,1847.0,1846.9,3.696]
[1746158512303,7.437,1847.0,1846.9,4.77862]
[1746158512598,5.838,1847.0,1846.9,4.77862]
[1746158512798,7.5426,1847.0,1846.9,3.696]
[1746158512999,8.62516,1847.0,1846.9,3.696]
[1746158513695,5.838,1847.0,1846.9,4.77862]
[1746158513897,5.838,1847.0,1846.9,6.50212]
[1746158514199,9.376,1847.0,1846.9,6.50212]
[1746158514797,3.538,1847.0,1846.9,6.50212]
[1746158515493,7.5426,1847.2,1847.1,1.0825]
[1746158515801,12.16304,1847.2,1847.0,2.71462]
[1746158516001,1.0825,1847.1,1847.0,1.6321]
[1746158516193,2.8105,1847.1,1847.0,5.3281]
[1746158516393,1.728,1847.1,1847.0,6.41066]
[1746158516599,2.8105,1847.1,1847.0,5.3281]
[1746158516799,3.6712,1847.1,1847.0,3.696]
[1746158517402,4.475,1847.1,1847.0,3.696]
[1746158519001,8.013,1847.1,1847.0,3.696]
[1746158519804,1.08256,1847.0,1846.9,6.25718]
[1746158520402,1.08256,1847.0,1846.9,5.1746]
[1746158520602,2.70996,1847.0,1846.9,5.1746]
[1746158520905,1.6274,1847.0,1846.9,6.25722]
[1746158521105,0.8607,1847.1,1847.0,1.08256]
[1746158521306,4.3987,1847.1,1847.0,2.79836]
[1746158521606,5.4812,1847.1,1847.0,1.7158]
[1746158522204,5.4812,1847.1,1847.0,5.4118]
[1746158522503,7.1086,1847.1,1847.0,5.4118]
[1746158524505,5.838,1847.2,1847.0,5.4118]
[1746158524701,5.838,1847.2,1847.1,2.8297]
[1746158525008,9.363,1847.2,1847.1,2.8297]
[1746158525198,10.44544,1847.2,1847.1,42.5472]
[1746158525704,9.363,1847.2,1847.1,43.6297]
[1746158525905,9.363,1847.2,1847.1,2.8297]
[1746158526504,3.2078,1847.5,1847.1,9.955]
[1746158526709,5.838,1847.7,1847.6,1.08221]
[1746158526894,6.4768692,1848.0,1847.8,1.08209]
[1746158527097,1.08207,1847.9,1847.8,3.696]
[1746158527503,11.5871792,1848.0,1847.8,3.696]
[1746158527704,11.5871692,1848.0,1847.8,4.77808]
[1746158527895,1.08203,1847.9,1847.8,3.696]
[1746158528503,11.5871792,1848.0,1847.8,4.77809]
[1746158528806,11.5871792,1848.0,1847.8,3.696]
[1746158528807,10.5051692,1848.0,1847.8,3.696]
[1746158529202,1.08203,1847.9,1847.8,3.696]
[1746158529402,2.67473,1847.9,1847.8,3.696]
[1746158529808,1.08221,1847.6,1847.5,3.2078]
[1746158530205,1.08221,1847.6,1847.5,3.696]
[1746158530405,2.67491,1847.6,1847.5,3.696]
[1746158532005,1.08243,1847.3,1847.1,1.0825]
[1746158532207,6.7318,1847.7,1847.3,1.08239]
[1746158532208,4.60636,1847.4,1847.3,1.08239]
[1746158532514,1.08234,1847.4,1847.2,1.0824]
[1746158532704,6.30354,1847.4,1847.2,1.0824]
[1746158533204,1.08241,1847.3,1847.2,3.696]
[1746158533605,2.77961,1847.3,1847.2,3.696]
[1746158534204,6.30361,1847.3,1847.2,3.696]
[1746158535111,5.2212,1847.3,1847.2,4.77844]
[1746158535414,6.30359,1847.3,1847.2,3.696]
[1746158536112,5.2212,1847.3,1847.2,4.77844]
[1746158536311,6.30359,1847.3,1847.2,4.77844]
[1746158536609,6.30359,1847.3,1847.2,3.696]
[1746158537811,2.77959,1847.3,1847.2,3.696]
[1746158538809,3.65379,1847.3,1847.2,3.696]
[1746158539516,8.65379,1847.3,1847.2,3.696]
[1746158540208,14.49179,1847.3,1847.2,3.696]
[1746158540814,14.49179,1847.3,1847.2,2.54402]
[1746158541011,1.08256,1847.0,1846.9,0.2639]
[1746158541212,7.81436,1847.0,1846.9,3.9599]
[1746158542011,10.28416,1847.0,1846.9,3.9599]
[1746158546114,9.2026,1847.0,1846.9,5.04252]
[1746158546415,10.28516,1847.0,1846.9,3.9599]
[1746158548218,6.76016,1847.0,1846.9,3.9599]
[1746158548419,10.28516,1847.0,1846.9,3.9599]
[1746158548818,6.76016,1847.0,1846.9,3.9599]
[1746158549019,10.28516,1847.0,1846.9,3.9599]
[1746158553822,3.5905477,1847.1,1847.0,1.08256]
[1746158554017,3.5905477,1847.1,1847.0,7.58016]
[1746158554514,3.5905477,1847.1,1847.0,4.37236]
[1746158554720,4.6730477,1847.1,1847.0,3.2898]
[1746158554909,4.6730477,1847.1,1847.0,4.63636]
[1746158555108,4.6730477,1847.1,1847.0,8.33236]
[1746158555618,4.6730477,1847.1,1847.0,7.2498]
[1746158555820,4.6730477,1847.1,1847.0,8.33236]
[1746158556023,4.6730477,1847.1,1847.0,7.2498]
[1746158556222,1.0825,1847.1,1847.0,7.2498]
[1746158556422,2.8121,1847.1,1847.0,7.2498]
[1746158558027,1.0825,1847.1,1847.0,7.2498]
[1746158558321,1.7508,1847.3,1847.0,7.2498]
[1746158558524,1.08244,1847.2,1847.1,1.6546]
[1746158559025,4.3826477,1847.5,1847.1,1.6546]
[1746158559226,3.511,1847.4,1847.3,1.08235]
[1746158559625,4.59333,1847.4,1847.3,1.08235]
[1746158559920,4.59333,1847.4,1847.2,1.0824]
[1746158560123,4.59333,1847.4,1847.3,1.74]
[1746158560626,4.59333,1847.4,1847.3,2.82239]
[1746158561325,4.59333,1847.4,1847.3,6.51839]
[1746158561823,4.59333,1847.4,1847.3,5.436]
[1746158562325,6.31213,1847.4,1847.3,5.436]
[1746158562921,9.51993,1847.4,1847.3,3.696]
[1746158563125,10.37723,1847.4,1847.3,3.696]
[1746158564320,7.16943,1847.4,1847.3,3.696]
[1746158567221,3.511,1847.4,1847.3,4.77839]
[1746158567422,4.59333,1847.4,1847.3,6.44589]
[1746158567829,4.59333,1847.4,1847.3,5.3635]
[1746158568421,1.08233,1847.4,1847.3,5.3635]
[1746158575536,1.08233,1847.4,1847.3,5.6275]
[1746158580430,5.3138477,1847.5,1847.3,5.6275]
[1746158580636,3.5905477,1847.5,1847.4,2.79813]
[1746158581136,4.6728177,1847.5,1847.4,5.4118]
[1746158581334,6.3114177,1847.5,1847.4,5.4118]
[1746158583027,6.3114177,1847.5,1847.4,3.696]
[1746158583240,2.72087,1847.5,1847.4,3.696]
[1746158586039,2.72087,1847.5,1847.4,4.77833]
[1746158586239,2.72087,1847.5,1847.4,3.696]
[1746158588334,2.72087,1847.5,1847.4,4.77833]
[1746158588930,2.72087,1847.5,1847.4,3.696]
[1746158590339,2.72087,1847.5,1847.4,3.96]
[1746158593445,3.14673573,1847.5,1847.4,3.96]
[1746158594849,2.06446573,1847.5,1847.4,5.04233]
[1746158595142,2.06446573,1847.5,1847.4,6.74253]
[1746158595343,3.14673573,1847.5,1847.4,6.74253]
[1746158595943,3.14673573,1847.5,1847.4,5.6602]
[1746158596344,3.14673573,1847.5,1847.4,6.74253]
[1746158596533,3.14673573,1847.5,1847.4,5.6602]
[1746158597043,2.06446573,1847.5,1847.4,6.74253]
[1746158597243,3.14673573,1847.5,1847.4,6.74253]
[1746158597544,3.14673573,1847.5,1847.4,5.6602]
[1746158597840,0.42586573,1847.5,1847.4,11.74253]
[1746158598044,3.5905477,1847.7,1847.6,1.08221]
[1746158598446,4.6726977,1847.7,1847.6,2.80331]
[1746158598646,4.6726977,1847.7,1847.6,1.7211]
[1746158599350,6.3550977,1847.7,1847.6,3.3423]
[1746158600037,1.08221,1847.6,1847.5,3.696]
[1746158600241,1.08227,1847.5,1847.4,0.264]
[1746158600742,2.76467,1847.5,1847.4,0.264]
[1746158601243,2.76467,1847.5,1847.4,3.96]
[1746158604847,2.76467,1847.5,1847.4,6.5048]
[1746158607453,2.76467,1847.5,1847.4,7.58713]
[1746158607750,2.76467,1847.5,1847.4,6.5048]
[1746158608455,2.76467,1847.5,1847.4,7.58713]
[1746158608651,2.76467,1847.5,1847.4,8.42363]
[1746158608841,1.08227,1847.5,1847.4,8.42363]
[1746158609046,1.08227,1847.5,1847.4,7.3413]
[1746158609351,1.08227,1847.5,1847.4,8.42363]
[1746158610159,1.51327786,1847.5,1847.4,8.42363]
[1746158612565,0.43100786,1847.5,1847.4,8.42363]
[1746158613464,1.51327786,1847.5,1847.4,8.42363]
[1746158613666,0.43100786,1847.5,1847.4,8.42363]
[1746158614656,1.51327786,1847.5,1847.4,8.42363]
[1746158617261,1.51327786,1847.5,1847.4,7.3413]
[1746158617454,2.34307786,1847.5,1847.4,3.96]
[1746158617661,4.02277786,1847.5,1847.4,3.96]
[1746158618663,4.02277786,1847.5,1847.4,5.04233]
[1746158618860,4.02277786,1847.5,1847.4,3.96]
[1746158620667,4.02277786,1847.5,1847.4,5.04233]
[1746158621466,0.43100786,1847.5,1847.4,5.04233]
[1746158621667,0.43100786,1847.5,1847.4,7.58793]
[1746158626361,0.43100786,1847.5,1847.4,10.79573]
[1746158627570,7.86e-06,1847.5,1847.4,19.28773]
[1746158627765,0.43561535,1847.9,1847.8,1.08209]
[1746158627971,2.24427612,1848.1,1848.0,1.08198]
[1746158628168,10.75018486,1848.4,1848.0,48.78578]
[1746158628360,4.94106477,1848.4,1848.3,4.2896]
[1746158628561,3.15130477,1848.4,1848.3,4.2896]
[1746158628870,3.15130477,1848.4,1848.3,9.2896]
[1746158629064,3.15130477,1848.4,1848.3,13.2496]
[1746158629674,3.15130477,1848.4,1848.3,14.9322]
[1746158630372,3.15130477,1848.4,1848.3,15.34246882]
[1746158631474,1.6496,1848.7,1848.5,1.08167]
[1746158631674,1.6496,1848.7,1848.6,1.6325]
[1746158632069,2.73117,1848.7,1848.6,1.6325]
[1746158633377,2.73117,1848.7,1848.5,6.9038]
[1746158633677,1.08162,1848.6,1848.5,8.5667]
[1746158633877,1.6271,1848.6,1848.5,8.5667]
[1746158634179,2.70872,1848.6,1848.5,8.5667]
[1746158636479,2.70872,1848.6,1848.5,6.9038]
[1746158639181,2.70872,1848.6,1848.5,3.2078]
[1746158645579,1.6271,1848.6,1848.5,3.2078]
[1746158645780,1.08139,1849.0,1848.5,7.52306]
[1746158645984,4.36336,1849.1,1848.9,4.28921]
[1746158646183,2.71799,1849.0,1848.9,3.2078]
[1746158646382,2.71799,1849.0,1848.9,4.8189]
[1746158646580,2.71799,1849.0,1848.9,5.0829]
[1746158646981,2.71799,1849.0,1848.9,0.264]
[1746158647678,7.71799,1849.0,1848.9,0.264]
[1746158648279,1.08162,1848.6,1848.5,3.2078]
[1746158649187,2.76282,1848.6,1848.5,6.9038]
[1746158650183,2.76282,1848.6,1848.5,3.2078]
[1746158652489,7.76282,1848.6,1848.5,3.2078]
[1746158652785,1.6812,1848.6,1848.2,4.28966]
[1746158652991,2.763,1848.5,1848.3,1.0818]
[1746158653288,1.08174,1848.4,1848.3,5.2876]
[1746158653481,3.59124,1848.4,1848.3,3.696]
[1746158658491,4.01642208,1848.4,1848.3,3.696]
[1746158659494,2.93468208,1848.4,1848.3,4.7778]
[1746158659695,5.838,1849.5,1848.3,59.277]
[1746158659889,1.6557,1849.4,1849.3,1.08118]
[1746158660089,1.6557,1849.4,1849.3,4.56118]
[1746158660295,7.17597862,1849.6,1849.5,1.0811]
[1746158660496,8.83547862,1849.6,1849.5,45.0889]
[1746158660787,7.17597862,1849.6,1849.5,45.0889]
[1746158661190,7.17597862,1849.6,1849.5,48.7849]
[1746158661391,7.17597862,1849.6,1849.5,52.2649]
[1746158664497,1.08091,1849.9,1849.6,1.081]
[1746158664697,2.81891,1849.9,1849.7,3.2078]
[1746158664996,2.81891,1849.9,1849.8,3.479]
[1746158665401,2.81891,1849.9,1849.7,3.2078]
[1746158665603,2.81891,1849.9,1849.8,3.479]
[1746158665901,2.81891,1849.9,1849.7,3.2078]
[1746158666101,2.81891,1849.9,1849.8,3.478]
[1746158667798,1.08092,1849.8,1849.7,3.2078]
[1746158668005,1.08098,1849.7,1849.5,44.0078]
[1746158668300,1.6005,1849.6,1849.5,44.0078]
[1746158668601,2.68154,1849.6,1849.5,47.4858]
[1746158668802,1.6005,1849.6,1849.5,44.0078]
[1746158669004,2.68154,1849.6,1849.5,47.4858]
[1746158669397,1.6005,1849.6,1849.5,47.4858]
[1746158669793,2.68154,1849.6,1849.5,47.4858]
[1746158673007,2.68154,1849.6,1849.5,44.0078]
[1746158673207,2.68154,1849.6,1849.5,47.4858]
[1746158674110,2.68154,1849.6,1849.5,44.278]
[1746158674308,2.68154,1849.6,1849.5,47.4858]
[1746158675006,2.68154,1849.6,1849.5,44.0078]
[1746158675209,2.68154,1849.6,1849.5,47.4858]
[1746158676009,1.6005,1849.6,1849.5,47.4858]
[1746158676209,7.4918,1850.0,1849.5,52.4858]
[1746158676415,1.08081,1850.0,1849.9,3.2078]
[1746158676715,1.08081,1850.0,1849.9,6.6938]
[1746158677305,1.08081,1850.0,1849.9,3.2078]
[1746158677915,1.08086,1849.9,1849.8,3.486]
[1746158678117,2.81676,1849.9,1849.8,3.486]
[1746158678319,3.66846,1849.9,1849.8,3.486]
[1746158678617,1.08098,1849.7,1849.6,4.8591]
[1746158678916,1.08098,1849.7,1849.6,6.6938]
[1746158681618,2.5876,1849.9,1849.6,7.77482]
[1746158681817,1.08098,1849.7,1849.6,6.6938]
[1746158683816,1.08098,1849.7,1849.6,3.2078]
[1746158684009,1.08098,1849.7,1849.6,6.6928]
[1746158684713,2.5876,1849.9,1849.6,6.6928]
[1746158684910,1.08098,1849.7,1849.6,7.77384]
[1746158685418,1.7359,1849.9,1849.8,1.08092]
[1746158685618,0.807,1850.2,1850.1,1.08075]
[1746158685808,0.807,1850.2,1849.9,3.485]
[1746158686014,2.5374,1850.1,1849.9,4.56585]
[1746158686316,2.5374,1850.1,1849.8,3.2078]
[1746158686317,5.7452,1850.1,1849.7,3.485]
[1746158686517,2.5374,1850.1,1849.7,3.485]
[1746158686818,1.08085,1850.0,1849.8,2.66141]
[1746158687024,2.80946,1849.9,1849.8,1.5805]
[1746158687313,2.80946,1849.9,1849.8,2.66142]
[1746158687520,1.7286,1849.9,1849.8,2.66142]
[1746158688916,1.88958,1850.1,1849.9,1.08085]
[1746158689115,2.4524,1850.1,1850.0,1.08081]
[1746158689319,3.53315,1850.1,1849.9,2.70582]
[1746158689518,2.4524,1850.1,1850.0,1.08081]
[1746158689708,1.6436,1850.1,1850.0,6.19081]
[1746158689913,1.6436,1850.1,1850.0,9.39861]
[1746158690717,2.72435,1850.1,1850.0,8.3178]
[1746158692313,1.6436,1850.1,1850.0,9.39861]
[1746158694417,1.6436,1850.1,1850.0,6.19081]
[1746158694619,1.6436,1850.1,1850.0,9.39861]
[1746158696211,1.08065,1850.3,1850.0,8.3178]
[1746158696416,2.81305,1850.3,1850.1,2.81223]
[1746158696617,1.08069,1850.2,1850.1,1.7315]
[1746158696822,1.6783,1850.2,1850.1,2.81225]
[1746158698322,1.93349,1850.4,1850.1,1.7315]
[1746158698520,3.61179,1850.4,1850.2,4.28846]
[1746158699021,1.6783,1850.3,1850.2,4.28846]
[1746158700318,1.6783,1850.3,1850.2,3.2078]
[1746158700523,1.6783,1850.3,1850.2,4.28849]
[1746158701728,2.75893,1850.3,1850.2,4.28849]
[1746158702023,2.75893,1850.3,1850.2,3.2078]
[1746158702616,1.6783,1850.3,1850.2,4.28849]
[1746158702816,1.6783,1850.3,1850.2,5.96139]
[1746158703424,2.75893,1850.3,1850.2,4.8807]
[1746158704530,1.6783,1850.3,1850.2,5.96139]
[1746158705529,2.75893,1850.3,1850.2,5.96139]
[1746158706429,4.28823,1850.7,1850.5,1.0805]
[1746158706624,1.7189,1850.6,1850.5,1.08051]
[1746158707219,4.873,1850.7,1850.5,1.08051]
[1746158707220,11.21119676,1851.0,1850.9,1.08028]
[1746158707424,7.17597862,1851.2,1850.9,6.7138]
[1746158707626,6.09281862,1851.2,1851.1,4.28796]
[1746158707823,4.76762862,1851.2,1851.1,45.08796]
[1746158708025,6.27814662,1851.3,1851.2,1.08011]
[1746158708221,1.7189,1851.7,1851.6,1.07987]
[1746158708424,1.7189,1851.7,1851.6,7.79367]
[1746158708620,1.7189,1851.7,1851.6,48.59367]
[1746158709023,1.7189,1851.7,1851.6,47.5138]
[1746158709225,10.75428522,1851.8,1851.7,1.07981]
[1746158709428,10.75428522,1851.8,1851.6,47.5138]
[1746158709619,12.48428522,1851.8,1851.6,47.5138]
[1746158709931,13.56404522,1851.8,1851.6,44.0078]
[1746158710227,1.07981,1851.7,1851.6,44.0078]
[1746158710426,2.80981,1851.7,1851.6,47.5138]
[1746158710824,7.80981,1851.7,1851.6,40.8]
[1746158711327,11.50581,1851.7,1851.6,40.8]
[1746158711827,1.07993,1851.5,1851.4,3.2078]
[1746158712229,1.08009,1851.3,1851.2,6.7128]
[1746158712429,1.08009,1851.3,1851.2,47.5128]
[1746158712723,1.08009,1851.3,1851.2,40.8]
[1746158712928,1.08016,1851.1,1850.9,3.505]
[1746158713127,1.6377,1851.0,1850.9,3.505]
[1746158713333,1.6377,1851.0,1850.9,45.38528]
[1746158713633,1.6377,1851.0,1850.9,47.5128]
[1746158714028,2.71792,1851.0,1850.9,44.0078]
[1746158714229,1.6377,1851.0,1850.9,44.0078]
[1746158714429,2.71792,1851.0,1850.9,44.0078]
[1746158714730,2.71794,1851.0,1850.9,3.2078]
[1746158715535,2.71794,1851.0,1850.7,6.7128]
[1746158715536,1.08038,1850.8,1850.7,6.7128]
[1746158715925,2.72451,1850.9,1850.7,3.2078]
[1746158716127,2.77734,1850.8,1850.7,3.2078]
[1746158716328,1.697,1850.8,1850.7,45.0882]
[1746158716527,1.697,1850.8,1850.7,44.0078]
[1746158716731,2.77734,1850.8,1850.7,44.0078]
[1746158717233,5.393,1850.8,1850.3,53.7408]
[1746158717435,1.08057,1850.4,1850.3,3.2078]
[1746158717735,1.08057,1850.4,1850.3,40.8]
[1746158718537,1.08057,1850.4,1850.3,44.0078]
[1746158718733,1.08056,1850.5,1850.3,44.0078]
[1746158718934,1.08057,1850.4,1850.3,44.0078]
[1746158725433,1.08057,1850.4,1850.3,40.8]
[1746158727244,2.67097,1850.4,1850.3,40.8]
[1746158731350,0.8135,1850.5,1850.3,40.8]
[1746158731545,2.69669,1850.6,1850.4,2.66577]
[1746158731751,1.08051,1850.5,1850.4,2.66577]
[1746158732054,1.08051,1850.5,1850.4,1.5852]
[1746158733355,1.08051,1850.5,1850.4,2.66577]
[1746158733546,1.6162,1850.6,1850.4,2.66577]
[1746158733743,1.08051,1850.5,1850.4,6.17177]
[1746158734154,1.08051,1850.5,1850.4,3.506]
[1746158736046,1.08069,1850.2,1850.1,3.2078]
[1746158736357,1.08069,1850.2,1850.1,8.4203]
[1746158736653,1.08069,1850.2,1850.1,50.30105]
[1746158737154,2.77957,1850.3,1850.2,1.08069]
[1746158737654,2.77957,1850.3,1850.1,50.301]
[1746158737852,2.77957,1850.3,1850.1,47.0932]
[1746158738451,2.77957,1850.3,1850.1,50.301]
[1746158739958,1.08069,1850.2,1850.1,49.2203]
[1746158740554,1.6989,1850.3,1850.1,50.30105]
[1746158740754,1.08069,1850.2,1850.1,49.2203]
[1746158742147,1.08069,1850.2,1850.1,45.7153]
[1746158742343,1.08069,1850.2,1850.1,42.5075]
[1746158744947,1.08069,1850.2,1850.1,43.58825]
[1746158745956,1.6989,1850.3,1850.2,1.08069]
[1746158746149,6.47555,1850.3,1850.2,1.08069]
[1746158746756,1.08069,1850.2,1850.1,46.796]
[1746158747158,1.95473,1850.4,1850.1,45.7153]
[1746158747357,1.95473,1850.4,1850.2,1.6821]
[1746158747557,1.95473,1850.4,1850.3,1.08063]
[1746158748161,3.696,1850.4,1850.2,1.6821]
[1746158748364,3.696,1850.4,1850.3,5.97833]
[1746158749052,4.77657,1850.4,1850.3,4.8977]
[1746158749360,2.65747,1850.4,1850.3,1.6899]
[1746158749757,2.65747,1850.4,1850.2,2.76274]
[1746158750855,1.5769,1850.3,1850.2,2.76274]
[1746158751563,2.65753,1850.3,1850.2,1.6821]
[1746158751861,1.08069,1850.2,1850.1,45.43772]
[1746158752062,2.69889,1850.2,1850.1,45.43772]
[1746158752564,1.6182,1850.2,1850.1,45.43772]
[1746158752758,1.6182,1850.2,1850.1,47.09652]
[1746158753063,1.6182,1850.2,1850.1,50.30432]
[1746158760159,0.8556,1850.3,1850.2,1.08069]
[1746158760355,0.8556,1850.3,1850.2,2.73349]
[1746158760764,1.08057,1850.4,1850.3,1.08063]
[1746158760957,1.08057,1850.4,1850.3,1.7427]
[1746158761162,1.08063,1850.3,1850.2,1.08065]
[1746158761451,3.49413,1850.3,1850.2,1.08069]
[1746158762462,3.49413,1850.3,1850.1,50.3882]
[1746158762661,1.5834,1850.2,1850.1,50.3882]
[1746158762862,1.5834,1850.2,1850.1,48.6455]
[1746158763063,2.66409,1850.2,1850.1,48.6455]
[1746158763457,1.5834,1850.2,1850.1,48.6455]
[1746158764054,1.5834,1850.2,1850.1,50.2486]
[1746158766964,1.5834,1850.2,1850.1,46.6916]
[1746158767365,0.8301,1850.3,1850.2,1.08069]
[1746158767670,1.6036,1850.4,1850.3,1.08063]
[1746158767963,4.42797237,1850.5,1850.4,1.08057]
[1746158768167,4.42797237,1850.5,1850.4,2.76997]
[1746158768564,7.11208237,1850.5,1850.4,2.76997]
[1746158769262,10.80808237,1850.5,1850.4,2.76997]
[1746158769458,1.08057,1850.4,1850.3,6.7308]
[1746158769663,2.70347,1850.4,1850.3,6.7308]
[1746158770168,6.39947,1850.4,1850.3,6.7308]
[1746158770967,5.3189,1850.4,1850.3,7.81143]
[1746158771157,6.39947,1850.4,1850.3,7.81143]
[1746158771365,6.39947,1850.4,1850.3,3.2078]
[1746158771766,6.39947,1850.4,1850.3,4.28843]
[1746158772168,6.39947,1850.4,1850.3,3.2078]
[1746158772468,5.3189,1850.4,1850.3,4.28843]
[1746158772669,5.3189,1850.4,1850.3,5.98813]
[1746158773369,0.8387,1850.5,1850.4,1.08057]
[1746158773568,2.4434,1850.5,1850.4,1.08057]
[1746158774064,2.4434,1850.5,1850.4,2.78027]
[1746158774467,7.28527237,1850.7,1850.6,1.08046]
[1746158774665,7.28527237,1850.7,1850.6,4.28826]
[1746158775168,3.58927237,1850.7,1850.6,5.98796]
[1746158775375,5.19397237,1850.7,1850.6,5.98796]
[1746158776565,1.6047,1850.7,1850.6,5.98796]
[1746158776760,9.42727237,1851.0,1850.6,4.9075]
[1746158776960,3.53169,1850.9,1850.7,1.08036]
[1746158777160,1.6178,1850.8,1850.7,1.08036]
[1746158779178,1.6178,1850.8,1850.7,2.80976]
[1746158779668,6.08877237,1851.0,1850.8,1.08029]
[1746158779976,7.16899237,1851.0,1850.8,6.01749]
[1746158780273,1.6516,1850.9,1850.8,6.01749]
[1746158781575,0.8479,1851.0,1850.9,1.08028]
[1746158781777,3.56336,1851.1,1851.0,1.08022]
[1746158781970,2.4832,1851.1,1851.0,1.08022]
[1746158782171,11.37570237,1851.2,1851.0,3.2078]
[1746158782172,4.45757237,1851.2,1851.0,3.2078]
[1746158782375,8.03921237,1851.2,1851.0,4.288]
[1746158782675,1.6736,1851.1,1851.0,4.288]
[1746158783069,2.75376,1851.1,1851.0,3.2078]
[1746158784174,1.6736,1851.1,1850.8,1.08032]
[1746158784476,1.08034,1850.8,1850.7,6.7298]
[1746158785377,1.08034,1850.8,1850.7,7.8102]
[1746158785681,1.08034,1850.8,1850.7,6.7298]
[1746158785976,2.70071,1850.9,1850.5,6.7298]
[1746158786173,1.08046,1850.6,1850.5,6.7298]
[1746158786373,3.2227,1850.7,1850.5,6.7298]
[1746158786574,2.72406,1850.6,1850.5,6.7298]
[1746158786773,1.6436,1850.6,1850.5,7.81031]
[1746158787676,2.72406,1850.6,1850.5,6.7298]
[1746158787870,1.08051,1850.5,1850.4,10.67995237]
[1746158788175,2.67371,1850.5,1850.4,10.67995237]
[1746158789376,6.36971,1850.5,1850.4,13.88775237]
[1746158789682,1.0806,1850.4,1850.2,4.28846]
[1746158789873,1.5932,1850.3,1850.2,6.00656]
[1746158790675,3.47363,1850.3,1850.2,4.9259]
[1746158791775,3.47363,1850.3,1850.2,3.2078]
[1746158792582,1.08069,1850.2,1850.1,40.8]
[1746158792777,3.61239,1850.2,1850.1,40.8]
[1746158793183,2.5317,1850.2,1850.1,41.88075]
[1746158793478,2.5317,1850.2,1850.1,43.45925]
[1746158793680,2.5317,1850.2,1850.1,42.3785]
[1746158793986,1.6754,1850.2,1850.1,43.45925]
[1746158794586,0.7998,1850.3,1850.2,1.08069]
[1746158794787,0.7998,1850.3,1850.2,5.97379]
[1746158795287,2.5277,1850.3,1850.2,5.97379]
[1746158800785,1.7279,1850.3,1850.2,5.97379]
[1746158803085,2.80853,1850.3,1850.2,3.2078]
[1746158805083,2.80853,1850.3,1850.1,40.8]
[1746158805285,3.53309,1850.2,1850.1,40.8]
[1746158805486,1.08075,1850.1,1850.0,3.2078]
[1746158805681,1.6446,1850.1,1850.0,3.2078]
[1746158805879,1.6446,1850.1,1850.0,44.0078]
[1746158806086,5.3406,1850.1,1850.0,44.0078]
[1746158807992,6.42135,1850.1,1850.0,3.2078]
[1746158808191,11.42135,1850.1,1850.0,3.2078]
[1746158808390,6.42135,1850.1,1850.0,3.2078]
[1746158809793,5.3406,1850.1,1850.0,3.2078]
[1746158810290,6.42135,1850.1,1850.0,3.2078]
[1746158810588,6.42135,1850.1,1849.9,3.2078]
[1746158810785,2.5355,1850.0,1849.9,3.2078]
[1746158811089,8.3735,1850.0,1849.9,3.2078]
[1746158811391,8.3735,1850.0,1849.9,4.28866]
[1746158811594,8.3735,1850.0,1849.9,3.2078]
[1746158812092,12.0695,1850.0,1849.9,4.28866]
[1746158817797,13.15031,1850.0,1849.9,4.28866]
[1746158818000,12.0695,1850.0,1849.9,4.28866]
[1746158820291,9.534,1850.0,1849.9,4.28866]
[1746158820494,9.534,1850.0,1849.9,7.79566]
[1746158820694,7.67962,1850.0,1849.9,12.79566]
[1746158820897,1.4008,1850.0,1849.9,15.21766]
[1746158821093,1.6981,1850.4,1850.3,1.08063]
[1746158821295,3.58927237,1850.5,1850.4,1.08057]
[1746158821592,6.11877237,1850.6,1850.4,44.30257]
[1746158822203,10.89523237,1850.6,1850.4,44.30257]
[1746158822405,9.81477237,1850.6,1850.4,44.30257]
[1746158822905,9.81477237,1850.6,1850.4,44.30254]
[1746158823106,1.6411,1850.5,1850.4,44.30254]
[1746158823499,2.72161,1850.5,1850.4,43.222]
[1746158823699,1.6411,1850.5,1850.4,44.30257]
[1746158824809,0.8314,1850.6,1850.5,1.08051]
[1746158825007,0.8314,1850.6,1850.5,2.77051]
[1746158825208,4.5274,1850.6,1850.5,2.77051]
[1746158825406,6.1996,1850.6,1850.5,2.77051]
[1746158825610,6.1996,1850.6,1850.5,5.97831]
[1746158826114,2.5036,1850.6,1850.5,5.97831]
[1746158827913,1.08034,1850.8,1850.6,1.08042]
[1746158828210,1.08034,1850.8,1850.6,2.77842]
[1746158828211,1.0804,1850.7,1850.6,2.77842]
[1746158828402,1.0804,1850.7,1850.6,1.698]
[1746158829110,4.7764,1850.7,1850.6,1.698]
[1746158829614,3.696,1850.7,1850.6,2.77846]
[1746158830009,4.7764,1850.7,1850.6,2.77846]
[1746158830210,2.7395,1850.7,1850.6,2.77846]
[1746158830411,2.7395,1850.7,1850.6,1.698]
[1746158831011,2.7395,1850.7,1850.6,2.77846]
[1746158831714,2.7395,1850.7,1850.6,1.698]
[1746158832116,1.08046,1850.6,1850.5,3.2078]
[1746158832317,2.66226,1850.6,1850.5,3.2078]
[1746158832813,2.66226,1850.6,1850.5,4.28831]
[1746158833111,6.35826,1850.6,1850.5,4.28831]
[1746158833417,5.2778,1850.6,1850.5,4.28831]
[1746158833616,3.696,1850.6,1850.5,6.02651]
[1746158834116,2.66214,1850.8,1850.7,1.0804]
[1746158834518,1.5818,1850.8,1850.7,1.0804]